bitfinex-derivatives/quotes_SOLF0:USTF0_20250301
["timestamp","ask_amount","ask_price","bid_price","bid_amount"]
[1740793599854,2.54502139,148.57,148.48,0.04564095]
[1740793600053,2.54502139,148.57,148.49,14.48933514]
[1740793600860,5.3873,148.56,148.49,14.48933514]
[1740793601155,5.3873,148.56,148.5,14.48933514]
[1740793601353,5.3873,148.56,148.5,19.87823514]
[1740793601560,7.93192139,148.57,148.49,14.48933514]
[1740793601760,2.54502139,148.57,148.49,14.48933514]
[1740793602159,5.3872,148.56,148.5,5.3892]
[1740793602561,2.54502139,148.57,148.5,1.759]
[1740793602959,2.54502139,148.57,148.52,0.04872108]
[1740793603163,2.54502139,148.57,148.53,12.26]
[1740793603358,2.28912868,148.6,148.53,12.26]
[1740793603857,2.28912868,148.6,148.58,5.3863]
[1740793604158,2.28912868,148.6,148.55,0.04926395]
[1740793604357,2.53539513,148.63,148.55,0.04926395]
[1740793604358,2.53539513,148.63,148.62,5.3849]
[1740793604560,82.40068014,148.68,148.59,12.28]
[1740793604561,75.24218014,148.68,148.59,12.28]
[1740793604760,75.24218014,148.68,148.61,0.04918163]
[1740793604960,75.24218014,148.68,148.64,5.3841]
[1740793605163,75.24218014,148.68,148.64,12.3]
[1740793605657,75.24218014,148.68,148.65,0.04753164]
[1740793606066,30.71597906,148.68,148.67,5.383]
[1740793606253,214.22873395,148.71,148.67,192.0]
[1740793606452,187.43303395,148.71,148.68,1.34517083]
[1740793606659,171.26123395,148.71,148.7,5.382]
[1740793606855,157.4861225,148.71,148.7,197.382]
[1740793607057,2.62228445,148.72,148.7,195.36]
[1740793607260,358.14335965,148.88,148.72,20.24]
[1740793607467,238.27885965,148.88,148.74,20.24]
[1740793607767,2.96972958,148.97,148.79,0.04313526]
[1740793607966,544.60369802,148.95,148.81,20.24]
[1740793608171,317.48899802,148.95,148.93,5.3736]
[1740793608469,660.98109658,149.15,148.94,21.58282261]
[1740793608656,20.16,149.09,148.95,1.34273246]
[1740793608860,20.16,149.06,148.96,13.36]
[1740793609055,20.16,149.04,149.01,0.05113303]
[1740793609265,45.54216948,149.17,149.02,13.54]
[1740793609467,45.54216948,149.17,149.03,1.34201167]
[1740793609673,45.54216948,149.17,149.08,0.0454085]
[1740793609857,45.54216948,149.17,149.09,35.52147159]
[1740793610055,45.54216948,149.17,149.11,0.04417074]
[1740793610352,45.54216948,149.17,149.12,15.26120171]
[1740793610557,45.54216948,149.17,149.13,1.34111178]
[1740793610753,31.54216948,149.17,149.13,1.34111178]
[1740793610958,31.54216948,149.17,149.14,14.13539676]
[1740793611161,31.54216948,149.17,149.15,1.34093194]
[1740793611353,19.47568986,149.17,149.16,13.96]
[1740793611560,19.47568986,149.17,149.16,28.09539676]
[1740793612365,25.63568986,149.17,149.16,14.13539676]
[1740793612563,56.94317854,149.17,149.16,115.97408851]
[1740793612759,3.18322879,149.17,149.16,115.97408851]
[1740793612961,224.98317854,149.17,149.16,115.97408851]
[1740793613555,225.32700773,149.19,149.16,115.97408851]
[1740793613968,171.56705798,149.19,149.16,115.97408851]
[1740793614171,148.56774133,149.19,149.17,5.31779399]
[1740793614670,1.83,149.36,149.18,19.45428683]
[1740793614865,168.04,149.25,149.18,19.45428683]
[1740793615268,13.98,149.34,149.2,0.04897471]
[1740793615471,168.04,149.28,149.19,5.47428683]
[1740793615664,168.04,149.27,149.19,5.47428683]
[1740793615969,168.04,149.25,149.22,0.0466722]
[1740793616170,382.84,149.25,149.19,121.95376021]
[1740793616372,214.82,149.25,149.22,0.05091744]
[1740793616871,214.82,149.25,149.23,64.2777582]
[1740793617171,214.82,149.29,149.23,13.94]
[1740793617362,382.84,149.29,149.23,13.94]
[1740793617570,168.02,149.28,149.23,13.94]
[1740793617868,168.02,149.28,149.25,0.04755846]
[1740793618558,168.02,149.26,149.25,0.04755846]
[1740793618964,168.02,149.26,149.07,20.24]
[1740793619164,168.02,149.25,149.09,20.24]
[1740793619664,5.3615,149.27,149.09,20.24]
[1740793619863,5.3615,149.27,149.11,20.24]
[1740793619864,168.02,149.25,149.11,20.24]
[1740793620273,0.04544577,149.19,149.17,0.04587795]
[1740793620470,0.04544577,149.19,149.18,13.88]
[1740793620674,214.82,149.29,149.18,13.88]
[1740793620870,0.04715964,149.19,149.18,13.88]
[1740793621062,168.02,149.23,149.18,13.88]
[1740793621266,0.04703681,149.2,149.18,13.88]
[1740793621469,168.02,149.22,149.18,13.88]
[1740793621681,0.04692107,149.2,149.18,13.92887384]
[1740793621968,0.04692107,149.2,149.18,0.04887384]
[1740793622274,382.64,149.19,149.18,0.04887384]
[1740793622671,382.64,149.19,149.04,8.61546642]
[1740793622869,168.02,149.16,149.05,15.1818316]
[1740793623073,168.02,149.16,149.06,1.34174158]
[1740793623276,168.02,149.16,149.06,6.71567208]
[1740793623475,5.3654,149.17,149.06,6.71567208]
[1740793623668,168.02,149.17,149.06,1.34174158]
[1740793623873,0.04582157,149.13,149.1,0.04238211]
[1740793624376,0.04582157,149.13,149.11,13.82]
[1740793626482,0.04582157,149.13,149.11,17.18]
[1740793627083,0.04582157,149.13,149.11,13.82]
[1740793628980,5.2967,149.25,149.12,1.34120171]
[1740793629181,168.02,149.19,149.12,1.34120171]
[1740793629377,168.02,149.15,149.12,1.34120171]
[1740793629682,168.02,149.13,149.02,13.93799525]
[1740793629877,168.02,149.01,148.95,13.9]
[1740793630073,214.56,149.04,148.95,13.9]
[1740793630377,168.02,148.97,148.95,13.9]
[1740793630580,168.02,148.96,148.88,8.59329941]
[1740793630775,168.02,148.96,148.81,21.5637]
[1740793630776,168.02,148.91,148.81,1.3237]
[1740793631078,168.02,148.89,148.82,13.92]
[1740793631283,168.02,148.92,148.82,13.92]
[1740793631480,214.56,148.93,148.82,13.92]
[1740793631781,0.04812614,148.88,148.86,0.04722776]
[1740793631983,0.04812614,148.88,148.87,13.94]
[1740793632184,214.56,148.93,148.87,19.3158]
[1740793632385,0.04664422,148.88,148.87,13.94]
[1740793632574,382.58,148.93,148.87,13.94]
[1740793632777,0.04379992,148.89,148.87,13.94]
[1740793632980,168.06379992,148.89,148.87,13.94]
[1740793633373,168.06379992,148.89,148.86,0.04722776]
[1740793633580,168.06379992,148.89,148.86,13.98722776]
[1740793634083,0.04379992,148.89,148.86,13.98722776]
[1740793634887,0.04379992,148.89,148.86,17.34722776]
[1740793635080,0.04379992,148.89,148.86,13.98722776]
[1740793636679,214.56,148.93,148.87,5.3755]
[1740793636885,214.56,148.93,148.76,14.08]
[1740793636886,168.02,148.87,148.76,14.08]
[1740793637186,173.398,148.81,148.72,5.381]
[1740793637385,168.02,148.81,148.73,14.08]
[1740793637775,168.02,148.81,148.74,5.3802]
[1740793637982,214.76,148.83,148.76,0.04422969]
[1740793638283,168.02,148.78,148.76,0.04422969]
[1740793638885,0.0450945,148.81,148.76,0.04422969]
[1740793639084,168.02,148.8,148.76,0.04422969]
[1740793639686,168.02,148.79,148.76,0.04422969]
[1740793639877,168.02,148.77,148.6,192.0]
[1740793640082,168.02,148.76,148.61,16.64114146]
[1740793640283,168.02,148.74,148.68,8.54161185]
[1740793640482,168.02,148.72,148.69,14.08]
[1740793640789,168.02,148.7,148.69,22.62161185]
[1740793641089,168.02,148.71,148.69,8.58813656]
[1740793641286,168.02,148.71,148.69,0.04652471]
[1740793641490,0.04722074,148.72,148.69,0.04652471]
[1740793641687,168.06722074,148.72,148.69,0.04652471]
[1740793641883,192.37579837,148.73,148.69,0.04652471]
[1740793642486,192.37579837,148.73,148.7,13.98487175]
[1740793642884,192.37579837,148.73,148.72,5.3812]
[1740793643090,0.04810176,148.73,148.72,14.04]
[1740793643393,167.98930515,148.8,148.72,14.04]
[1740793643593,168.02,148.76,148.72,14.04]
[1740793643786,168.02,148.77,148.72,28.02487175]
[1740793643982,168.02,148.77,148.73,13.98487175]
[1740793644181,168.02,148.73,148.71,14.02]
[1740793644380,168.02,148.73,148.7,14.02]
[1740793644594,168.06592376,148.73,148.71,0.04526604]
[1740793644788,168.02,148.73,148.7,14.02]
[1740793644983,168.06700984,148.73,148.71,0.04272779]
[1740793645190,0.04700984,148.73,148.72,839.07902934]
[1740793645493,0.04700984,148.73,148.72,820.36652934]
[1740793645788,168.06700984,148.73,148.72,820.36652934]
[1740793646393,27.35820952,148.73,148.72,820.36652934]
[1740793646596,167.98930515,148.8,148.72,820.36652934]
[1740793646796,27.35820952,148.75,148.72,820.36652934]
[1740793646989,167.98930515,148.8,148.72,820.36652934]
[1740793646990,27.35820952,148.79,148.72,820.36652934]
[1740793647392,167.98930515,148.8,148.72,820.36652934]
[1740793647596,0.02061429,148.77,148.74,5.43095484]
[1740793647792,0.02061429,148.77,148.75,14.02]
[1740793648195,167.98930515,148.8,148.75,14.02]
[1740793648596,167.98930515,148.8,148.79,5.3787]
[1740793648990,167.98930515,148.8,148.75,14.02]
[1740793649194,167.98930515,148.8,148.79,5.3787]
[1740793649491,215.0,148.87,148.76,0.043589]
[1740793649693,215.0,148.87,148.75,14.02]
[1740793649997,215.0,148.87,148.8,0.0425901]
[1740793650195,215.0,148.94,148.81,14.02]
[1740793650393,27.35820952,148.89,148.81,14.02]
[1740793650590,27.35820952,148.9,148.86,0.04636221]
[1740793650787,27.35820952,148.92,148.87,14.0]
[1740793650994,27.35820952,148.89,148.87,14.0]
[1740793651192,215.0,148.94,148.82,14.0]
[1740793651193,27.35820952,148.88,148.82,14.0]
[1740793651387,215.0,148.94,148.82,14.0]
[1740793651697,123.9326448,148.94,148.84,0.04246271]
[1740793651899,123.9326448,148.94,148.82,14.0]
[1740793652193,123.9326448,148.94,148.88,0.05102686]
[1740793652591,127.2926448,148.94,148.88,0.05102686]
[1740793652788,123.9326448,148.94,148.89,452.10058292]
[1740793653000,127.2926448,148.94,148.89,452.10058292]
[1740793653197,5.3747,148.9,148.89,452.10058292]
[1740793653393,214.98,148.93,148.89,452.10058292]
[1740793654496,214.98,149.0,148.89,452.10058292]
[1740793654696,214.98,148.99,148.93,1893.03335462]
[1740793654994,214.98,148.99,148.93,1907.11806494]
[1740793655196,220.3515,148.99,148.93,1907.11806494]
[1740793655397,214.98,148.99,148.94,107.3932677]
[1740793655597,168.12303994,148.99,148.94,107.3932677]
[1740793655902,5.3725,148.97,148.94,107.3932677]
[1740793656298,173.49483994,148.99,148.94,107.3932677]
[1740793656603,173.49483994,148.99,148.95,187.73476348]
[1740793656604,168.12303994,148.99,148.95,187.73476348]
[1740793656903,214.96,148.99,148.95,187.73476348]
[1740793657303,214.96,148.99,148.96,107.3932677]
[1740793657603,206.50776031,148.99,148.96,112.69006998]
[1740793657797,206.50776031,148.99,148.97,5.29680228]
[1740793658402,206.50776031,148.99,148.98,5.29680228]
[1740793658605,5.3694,149.05,148.98,5.29680228]
[1740793658807,214.92,149.06,148.98,5.29680228]
[1740793659105,5.3708,149.01,149.0,4.295e-05]
[1740793659405,14.02,149.01,148.97,72.4037677]
[1740793659606,5.3718,148.98,148.97,54.8163677]
[1740793659907,17.38,149.01,148.95,75.0446935]
[1740793660205,14.02,149.0,148.95,75.0446935]
[1740793660404,0.0454958,148.99,148.97,0.04661449]
[1740793660797,3.4054958,148.99,148.97,0.04661449]
[1740793660997,5.3722,148.98,148.97,0.04661449]
[1740793661199,3.4054958,148.99,148.96,113.84789616]
[1740793661402,0.0454958,148.99,148.96,113.84789616]
[1740793661600,5.3722,148.97,148.96,113.84789616]
[1740793662507,0.0454958,148.99,148.96,113.84789616]
[1740793663402,5.3722,148.97,148.96,113.84789616]
[1740793663597,5.3722,148.97,148.96,207.65376304]
[1740793663799,13.94,149.02,148.96,207.65376304]
[1740793664401,5.3722,148.98,148.96,207.65376304]
[1740793664604,13.92,149.02,148.96,207.65376304]
[1740793664805,0.04465421,148.98,148.96,207.69794583]
[1740793665709,13.9,149.04,148.97,47.07358817]
[1740793666201,34.14,149.04,148.97,47.07358817]
[1740793666400,37.5,149.04,148.97,47.07358817]
[1740793666706,37.5,149.04,148.97,140.87945505]
[1740793666904,20.24,149.03,148.97,115.94715556]
[1740793667106,20.24,149.03,148.97,107.87855556]
[1740793667306,23.6,149.03,148.97,107.87855556]
[1740793667811,5.3704,149.02,149.01,179.10783252]
[1740793668001,5.3704,149.02,149.01,142.98633252]
[1740793668207,8.7304,149.02,149.01,110.43853252]
[1740793668404,8.7304,149.02,149.01,89.09943252]
[1740793669802,5.41529235,149.03,149.01,89.09943252]
[1740793670496,0.04519235,149.03,149.01,89.09943252]
[1740793670699,0.04519235,149.03,149.0,0.05124693]
[1740793670901,0.04519235,149.03,149.0,5.42224693]
[1740793671203,0.04519235,149.03,149.0,0.05124693]
[1740793671601,0.04519235,149.03,149.01,5.3200976]
[1740793671799,3.40519235,149.03,149.01,5.3200976]
[1740793672406,3.40519235,149.03,149.0,0.05124693]
[1740793673101,5.3704,149.02,149.01,5.34287358]
[1740793673501,8.7304,149.02,149.01,5.34287358]
[1740793673703,5.3704,149.02,149.01,5.34287358]
[1740793673901,0.04519235,149.03,149.01,5.34287358]
[1740793674697,0.04519235,149.03,149.02,5.34287358]
[1740793678804,5.41519235,149.03,149.02,5.34287358]
[1740793679303,0.04519235,149.03,149.02,5.34287358]
[1740793679810,5.41519235,149.03,149.02,5.34287358]
[1740793680010,0.04519235,149.03,149.0,2.051e-05]
[1740793680305,5.3708,149.01,149.0,2.051e-05]
[1740793680812,0.04519235,149.03,148.98,85.62088739]
[1740793681009,5.3715,148.99,148.98,85.62088739]
[1740793681209,5.3715,148.99,148.98,55.17628739]
[1740793681411,5.3733,148.94,148.89,480.62002204]
[1740793682100,220.28271434,148.95,148.92,0.04494645]
[1740793682713,214.90971434,148.95,148.92,0.04494645]
[1740793683108,214.90971434,148.95,148.94,5.3733]
[1740793683516,214.90971434,148.95,148.93,1001.70674455]
[1740793683703,214.90971434,148.95,148.93,1009.77334455]
[1740793684214,214.90971434,148.95,148.93,996.33334455]
[1740793686720,5.3733,148.94,148.93,996.33334455]
[1740793687716,220.28271434,148.95,148.93,996.33334455]
[1740793687912,214.90971434,148.95,148.93,996.33334455]
[1740793689323,164.45398636,148.95,148.94,5.3733]
[1740793690110,0.04971434,148.95,148.93,996.33334455]
[1740793690514,5.42271434,148.95,148.93,996.33334455]
[1740793690714,0.04971434,148.95,148.93,996.33334455]
[1740793691117,0.04971434,148.95,148.94,5.3733]
[1740793691516,0.04971434,148.95,148.93,996.33334455]
[1740793692321,0.04971434,148.95,148.94,21.35418278]
[1740793692522,0.04971434,148.95,148.94,15.98088278]
[1740793693022,214.92,149.0,148.94,15.98088278]
[1740793693723,5.3715,148.99,148.96,5.3723]
[1740793693920,214.92,149.0,148.94,15.98088278]
[1740793694320,0.04254587,148.98,148.96,0.04792704]
[1740793694524,214.92,149.0,148.96,1.78112704]
[1740793694726,214.92,149.0,148.96,3.55362704]
[1740793695027,214.92,149.0,148.98,5.3715]
[1740793695223,214.92,149.0,148.96,3.55362704]
[1740793695423,214.92,149.0,148.97,15.98088278]
[1740793695725,214.92,149.0,148.97,29.42088278]
[1740793696226,214.92,149.0,148.97,15.98088278]
[1740793696524,214.92,149.0,148.96,16.02880982]
[1740793696724,5.3722,148.97,148.96,0.04792704]
[1740793696926,214.92,149.0,148.96,0.04792704]
[1740793697727,214.92,149.0,148.96,16.02880982]
[1740793698231,214.92,149.0,148.96,13.48792704]
[1740793698422,214.92,149.0,148.96,0.04792704]
[1740793698624,5.3718,148.99,148.97,15.98088278]
[1740793698819,214.92,149.0,148.97,15.98088278]
[1740793699024,214.92,149.0,148.96,0.04792704]
[1740793699834,5.3722,148.97,148.96,2.704e-05]
[1740793700628,18.8522,148.97,148.96,2.704e-05]
[1740793701337,0.04747139,148.98,148.96,2.704e-05]
[1740793701934,5.3722,148.97,148.96,2.704e-05]
[1740793703335,13.50747139,148.98,148.93,962.48277159]
[1740793703537,5.3733,148.94,148.93,872.99947159]
[1740793704443,16.8969,148.98,148.93,872.99947159]
[1740793704444,5.42135359,148.95,148.93,872.99947159]
[1740793704641,0.04835359,148.95,148.93,872.99947159]
[1740793705941,5.3733,148.94,148.93,872.99947159]
[1740793706242,5.3733,148.94,148.93,601.2721958]
[1740793706730,0.04835359,148.95,148.93,601.2721958]
[1740793706935,214.92,149.0,148.93,601.2721958]
[1740793707330,5.3715,148.99,148.93,601.2721958]
[1740793707535,214.92,149.0,148.93,601.2721958]
[1740793708138,214.92,149.0,148.95,0.048542]
[1740793709847,214.92,149.0,148.96,5.3725]
[1740793710340,214.92,149.0,148.96,18.8125]
[1740793710545,212.0858,149.0,148.96,13.38]
[1740793710747,206.4174,149.0,148.96,29.37554349]
[1740793711045,214.9,149.07,149.01,5.3707]
[1740793711243,5.3685,149.08,149.02,3.5548]
[1740793711443,5.3685,149.08,149.03,0.04424781]
[1740793712035,5.3679,149.09,149.03,5.41424781]
[1740793712246,5.3679,149.09,149.03,0.04424781]
[1740793713137,5.3683,149.08,149.03,0.04424781]
[1740793713442,214.9,149.1,149.03,0.04424781]
[1740793713649,5.3683,149.08,149.03,0.04424781]
[1740793713942,214.9,149.1,149.03,0.04424781]
[1740793714850,214.9,149.1,149.03,16.0397913]
[1740793715248,214.8,149.17,149.03,16.0397913]
[1740793715451,214.8,149.17,149.02,3.5548]
[1740793715649,214.8,149.17,149.09,0.04238934]
[1740793715851,5.3661,149.14,149.09,13.40238934]
[1740793716051,214.8,149.17,149.09,0.04238934]
[1740793716355,5.3675,149.1,149.09,0.04238934]
[1740793717450,5.3675,149.1,149.02,3.5548]
[1740793717451,0.04763798,149.11,149.02,3.5548]
[1740793717649,33.6,149.13,149.02,16.73695]
[1740793718049,13.36,149.13,149.02,3.5548]
[1740793718243,5.3686,149.08,149.03,5.3698]
[1740793718445,0.04641205,149.09,149.06,0.04589112]
[1740793719251,0.04641205,149.09,149.06,13.22804112]
[1740793719450,5.3686,149.07,149.06,0.04589112]
[1740793719649,214.78,149.07,148.95,15.99554349]
[1740793719851,214.78,149.07,148.95,13.18215]
[1740793720054,214.78,149.07,148.94,15.99554349]
[1740793720351,214.78,149.07,148.95,13.38]
[1740793720555,5.3703,149.03,148.95,13.38]
[1740793720748,0.04743496,149.02,149.0,0.04874888]
[1740793721150,0.04743496,149.02,148.94,15.99554349]
[1740793721542,23.87573496,149.02,148.94,15.99554349]
[1740793721743,5.3733,148.94,148.93,601.2721958]
[1740793721950,220.1533,148.94,148.93,601.2721958]
[1740793722654,220.1533,148.94,148.93,590.3688958]
[1740793723652,220.1533,148.94,148.93,587.5335958]
[1740793724450,214.78,148.94,148.93,587.5335958]
[1740793724951,220.1533,148.94,148.93,587.5335958]
[1740793725144,214.78,148.94,148.93,587.5335958]
[1740793726049,214.78,148.94,148.93,592.9071958]
[1740793726449,211.9446,148.94,148.93,592.9071958]
[1740793726757,197.7679,148.94,148.93,592.9071958]
[1740793726948,0.04661249,148.95,148.94,5.3733]
[1740793727147,0.04661249,148.95,148.93,587.5335958]
[1740793727548,0.04661249,148.95,148.93,592.9069958]
[1740793727957,0.04661249,148.95,148.93,587.5335958]
[1740793728155,0.04661249,148.95,148.94,5.3733]
[1740793728355,214.84,149.1,148.93,590.8935958]
[1740793728659,5.3259,149.09,148.94,15.89161381]
[1740793728850,5.3259,149.09,148.95,13.56]
[1740793729253,5.37,149.04,148.97,5.3719]
[1740793729551,0.05083754,149.02,148.99,0.04715837]
[1740793729948,0.05083754,149.02,148.99,13.22930837]
[1740793730565,0.05083754,149.02,148.99,0.04715837]
[1740793731753,0.05083754,149.02,148.99,13.22930837]
[1740793732160,5.371,149.01,148.99,13.22930837]
[1740793732457,0.05083754,149.02,148.94,29.41161381]
[1740793732654,18.8859,149.09,148.99,5.3715]
[1740793733263,5.3701,149.03,148.99,5.3715]
[1740793733650,0.05020186,149.02,149.0,5.42163822]
[1740793733855,18.8859,149.09,149.0,5.3708]
[1740793734055,0.04383456,149.02,149.0,0.04446819]
[1740793734354,0.04383456,149.02,149.0,0.04574241]
[1740793734355,0.05107832,149.02,149.0,0.04574241]
[1740793734957,0.05107832,149.02,149.01,5.3708]
[1740793735749,0.05107832,149.02,149.0,0.04574241]
[1740793735954,0.05107832,149.02,149.0,13.22789241]
[1740793736750,5.42167832,149.02,149.0,13.22789241]
[1740793737154,5.42167832,149.02,149.0,0.04574241]
[1740793737357,5.42167832,149.02,149.0,13.22789241]
[1740793737556,5.3708,149.01,149.0,0.04574241]
[1740793737755,0.05107832,149.02,148.94,15.89161381]
[1740793737956,18.8859,149.09,148.94,15.89161381]
[1740793737957,13.48,149.04,148.94,29.07376381]
[1740793738155,5.3727,148.96,148.94,29.07376381]
[1740793738763,5.3729,148.95,148.94,29.12025514]
[1740793738951,5.3729,148.95,148.94,0.04649133]
[1740793739462,0.04260411,148.96,148.93,587.5335958]
[1740793739669,5.3733,148.94,148.93,587.5335958]
[1740793740059,0.04260411,148.96,148.93,587.5335958]
[1740793740765,5.3729,148.95,148.93,587.58218229]
[1740793741558,5.3733,148.94,148.93,587.58218229]
[1740793742559,5.3733,148.94,148.93,567.99098229]
[1740793742958,5.3733,148.94,148.93,556.65138229]
[1740793743161,5.3747,148.9,148.89,452.87879298]
[1740793743366,5.3747,148.9,148.89,447.16708049]
[1740793743566,5.3747,148.9,148.89,400.43708049]
[1740793743753,8.7347,148.9,148.89,369.17828049]
[1740793744367,193.61366858,148.9,148.89,298.36078049]
[1740793745270,5.3763,148.86,148.82,452.10058292]
[1740793745569,228.36,148.85,148.82,452.10058292]
[1740793746159,214.94,148.85,148.77,13.4]
[1740793746366,214.98713046,148.85,148.82,0.04599658]
[1740793747367,36.18610306,148.84,148.83,5.3773]
[1740793747578,0.04713046,148.85,148.83,3.7455]
[1740793748072,3.046e-05,148.85,148.83,3.7455]
[1740793748371,118.85076552,148.9,148.83,3.7455]
[1740793748567,108.84176552,148.84,148.82,13.4]
[1740793748768,82.71036552,148.84,148.82,13.4]
[1740793748961,74.59736552,148.84,148.82,13.4]
[1740793749276,230.54822239,148.85,148.82,13.4]
[1740793749277,110.65851432,148.85,148.82,13.4]
[1740793749569,104.98581432,148.85,148.81,13.4]
[1740793749769,28.6618619,148.85,148.84,5.3769]
[1740793749969,97.35787698,148.84,148.82,0.04949442]
[1740793750175,70.71087698,148.84,148.82,3.40949442]
[1740793750375,166.23265721,148.86,148.82,3.40949442]
[1740793750872,166.23265721,148.86,148.85,5.3765]
[1740793751072,166.23265721,148.86,148.85,8.7365]
[1740793751373,0.04643032,148.87,148.86,5.3762]
[1740793751577,73.78148225,148.9,148.76,3.6666]
[1740793751869,0.0431184,148.88,148.77,13.38]
[1740793752075,5.373,148.95,148.84,5.3767]
[1740793752277,17.1546,148.96,148.84,13.38]
[1740793752474,5.3748,148.9,148.88,0.04735547]
[1740793752677,17.1546,148.96,148.8,13.36]
[1740793753377,5.3735,148.94,148.83,5.3771]
[1740793753879,0.04257607,148.9,148.87,0.05173049]
[1740793754078,5.3737,148.93,148.83,5.3771]
[1740793754378,0.04526096,148.9,148.87,0.04693518]
[1740793754572,17.1546,148.96,148.81,5.3779]
[1740793754876,0.04633943,148.9,148.87,0.04825431]
[1740793755071,3.7746,148.96,148.8,13.36]
[1740793755273,13.34,148.95,148.79,5.3786]
[1740793755478,5.3759,148.87,148.79,5.3786]
[1740793756179,0.04969515,148.84,148.82,0.0432483]
[1740793757181,0.04969515,148.84,148.83,5.3773]
[1740793757680,0.00259515,148.84,148.83,5.3773]
[1740793757878,73.78148225,148.92,148.85,5.3764]
[1740793758479,79.15548225,148.92,148.83,13.32]
[1740793758879,0.04256116,148.89,148.86,5.427348]
[1740793759674,0.04256116,148.89,148.86,0.051248]
[1740793760478,5.3758,148.87,148.86,0.051248]
[1740793760875,0.04256116,148.89,148.74,15.90428807]
[1740793761082,7.309,148.88,148.75,13.26]
[1740793761285,3.757,148.88,148.75,29.16428807]
[1740793761583,9.1325,148.88,148.76,15.90428807]
[1740793761981,0.05005318,148.83,148.81,0.05010076]
[1740793762286,9.1325,148.88,148.84,5.3768]
[1740793762478,5.3762,148.86,148.8,13.26]
[1740793762683,0.04910706,148.87,148.85,0.04910572]
[1740793762874,0.04910706,148.87,148.85,0.04755675]
[1740793763074,5.3765,148.86,148.85,0.04755675]
[1740793763281,0.04910706,148.87,148.81,5.3777]
[1740793763777,0.04910706,148.87,148.79,5.3785]
[1740793763982,206.997,148.88,148.76,15.90428807]
[1740793763983,16.997,148.88,148.76,29.14428807]
[1740793764178,16.997,148.88,148.76,13.24]
[1740793764480,0.0424525,148.83,148.81,0.05061713]
[1740793764677,16.997,148.88,148.73,13.24]
[1740793765180,37.237,148.88,148.73,13.24]
[1740793765373,37.237,148.88,148.72,15.90428807]
[1740793765883,0.04274078,148.81,148.79,0.04482278]
[1740793766176,13.22,148.82,148.71,5.3815]
[1740793766377,206.78,148.81,148.7,15.90428807]
[1740793766576,13.22,148.8,148.7,15.90428807]
[1740793766879,215.04,148.79,148.71,5.3815]
[1740793767075,215.04,148.79,148.68,13.22]
[1740793767283,0.04542073,148.76,148.74,0.04283188]
[1740793767775,0.04542073,148.76,148.75,5.3801]
[1740793767976,190.0,148.81,148.74,0.04283188]
[1740793768179,13.22,148.84,148.74,0.04283188]
[1740793768384,13.22,148.84,148.73,13.22]
[1740793768773,215.04,148.86,148.73,13.22]
[1740793769078,2.239e-05,148.81,148.78,0.0469555]
[1740793769271,2.239e-05,148.81,148.79,13.22]
[1740793769475,2.239e-05,148.81,148.8,5.3783]
[1740793780497,2.239e-05,148.81,148.8,8.7383]
[1740793780900,2.239e-05,148.81,148.8,24.67170592]
[1740793781203,3.5971,148.91,148.87,5.3755]
[1740793781401,215.04,148.93,148.84,13.06]
[1740793782196,215.04,148.93,148.91,5.3741]
[1740793782596,215.08557845,148.93,148.91,5.42372101]
[1740793782796,215.08557845,148.93,148.91,0.04962101]
[1740793782996,215.08557845,148.93,148.86,15.93340592]
[1740793783201,215.08557845,148.93,148.84,13.06]
[1740793783400,215.04,148.93,148.86,5.3759]
[1740793784001,5.3746,148.91,148.85,5.3765]
[1740793784200,5.42511379,148.91,148.88,0.05119885]
[1740793784502,0.05051379,148.91,148.88,0.05119885]
[1740793784802,0.05051379,148.91,148.83,13.04]
[1740793785906,0.05051379,148.91,148.86,0.04352709]
[1740793786203,5.3758,148.87,148.86,0.04352709]
[1740793786795,5.42585674,148.88,148.86,0.04352709]
[1740793787197,0.05015674,148.88,148.86,0.04352709]
[1740793787401,5.3758,148.87,148.86,0.04352709]
[1740793787599,0.05015674,148.88,148.83,13.04]
[1740793787803,0.05015674,148.88,148.81,15.93340592]